{"text_format":"1","workbook":"xlsx","n_sheets":3,"sheets":["Mode d'emploi","Questions","Animaux"],"not_rendered":{"charts":0,"images":60,"macros":1,"external_links":0,"defined_names":1,"comments":0,"pivot_tables":0},"unopened":[],"bounds":{"document_bytes":16777216,"sheet_cells":100000,"rows_first":2000,"rows_last":500,"rows_between":2000,"halvings":0,"cell_chars":16384,"cell_head_chars":4096},"cells_cut":0,"cells_raw":0,"read":"whole","date_system":"1900"}

{"sheet":"Mode d'emploi","index":0,"n_rows":35,"n_cols":15,"rows_kept":35,"cut":false,"hidden":false,"merged":[]}
[]
[]
[]
[]
[]
[]
[]
[null,null,null,null,null,null,null,null,null,null,null,null,"Il ou elle ….",null,"glatit"]
[null,null,null,null,null,null,null,null,null,null,null,null,"aboie",null,"glouglote"]
[null,null,null,null,null,null,null,null,null,null,null,null,"babille",null,"glousse"]
[null,null,null,null,null,null,null,null,null,null,null,null,"barrit",null,"grogne"]
[null,null,null,null,null,null,null,null,null,null,null,null,"bêle",null,"grommelle"]
[null,null,null,null,null,null,null,null,null,null,null,null,"belotte",null,"gronde"]
[null,null,null,null,null,null,null,null,null,null,null,null,"blatère",null,"hennit"]
[null,null,null,null,null,null,null,null,null,null,null,null,"bourdonne",null,"hulule"]
[null,null,null,null,null,null,null,null,null,null,null,null,"brait",null,"hurle"]
[null,null,null,null,null,null,null,null,null,null,null,null,"brame",null,"jabote"]
[null,null,null,null,null,null,null,null,null,null,null,null,"cacarde",null,"jacasse"]
[null,null,null,null,null,null,null,null,null,null,null,null,"cancane",null,"jappe"]
[null,null,null,null,null,null,null,null,null,null,null,null,"caquette",null,"meugle ou beugle"]
[null,null,null,null,null,null,null,null,null,null,null,null,"chante",null,"miaule"]
[null,null,null,null,null,null,null,null,null,null,null,null,"chevrote",null,"pépie"]
[null,null,null,null,null,null,null,null,null,null,null,null,"chicote",null,"pupule"]
[null,null,null,null,null,null,null,null,null,null,null,null,"clapit",null,"roucoule"]
[null,null,null,null,null,null,null,null,null,null,null,null,"coasse",null,"rugit"]
[null,null,null,null,null,null,null,null,null,null,null,null,"coquerique",null,"siffle"]
[null,null,null,null,null,null,null,null,null,null,null,null,"coucoule",null,"stridule"]
[null,null,null,null,null,null,null,null,null,null,null,null,"craquète",null,"tire-lire"]
[null,null,null,null,null,null,null,null,null,null,null,null,"drense",null,"vagit"]
[null,null,null,null,null,null,null,null,null,null,null,null,"feule",null,"vrombit"]
[null,"Pour jouer, aller dans la feuille \"Questions\""]
[null,null,null,"ou cliquer ici !",null,null,null,"Avertissement : Certains animaux ont plusieurs cris. Ici, le plus populaire a été choisi."]
[]
[]
["Révision 16.05.2020    © Yvan Peguiron"]

{"sheet":"Questions","index":1,"n_rows":114,"n_cols":18,"rows_kept":114,"cut":false,"hidden":false,"merged":[[8,17,9,17],[5,0,5,1],[8,6,9,6],[1,1,1,3],[5,2,7,2],[8,2,10,2]]}
[null,null,null,null,null,null,"zoom :",null,null,null,null,null,null,null,null,null,130]
[null,"Cris des animaux",null,null,null,null,null,2,null,1,0,"\"\""," ?"," ?"]
[null,null,null,null,null,null,null,null,null,2,15,"chien","aboie","A  -  aboie"]
[null,"Tirage",0,null,null,null,null,null,null,3,20,"corneille","babille","B  -  babille"]
[{"$f":"IF(VLOOKUP(C4,Animaux!A1:D63,2)=0,\"\",VLOOKUP(C4,Animaux!A1:D63,2))","v":""},{"$f":"A5&\" \"&VLOOKUP(C4,Animaux!A1:D63,3)","v":" Animal"},{"$f":"IF(OR(H2=1,H2=4),I10,VLOOKUP(H5,J1:M49,4))","v":" ?"},null,null,null,{"$f":"VLOOKUP($C$4,Animaux!A1:D61,4)","v":0},1,null,4,27,"éléphant","barrit","       barrit"]
[null,null,{"$f":"IF(C5=\" ?\",\"\",IF(C5=G5,\"Oui, bravo !\",\"Non, essaye encore...\"))","v":""},null,null,null,null,"rep corri",null,5,2,"agneau","bêle","       bêle"]
[null,null,null,null,null,null,{"$f":"VLOOKUP($C$4,Animaux!A1:F61,6)&\"…\"","v":"…"},null,null,6,7,"belette","belotte","       belotte"]
[null,null,null,null,null,null,null,null,null,7,11,"chameau","blatère","       blatère"]
[null,null,{"$f":"IF(C5=G5,\"C\",\"\")","v":""},null,null,null,null," ?",{"$f":"VLOOKUP(H5-1,L89:M94,2)","v":" ?"},8,1,"abeille","bourdonne","       bourdonne",null,null,null,"ou Return et (Ctrl+a)"]
[null,null,null,null,null,null,null,null,{"$f":"IF(H2=4,I9,H9)","v":" ?"},9,5,"âne","brait","       brait"]
[null,null,null,null,null,null,"Saisie de la réponse :",null,null,10,10,"cerf","brame","       brame"]
[null,null,null,null,null,null,null,null,null,11,40,"oie","cacarde","C -  cacarde"]
[null,"Statistiques",null,null,null,null,null,null,null,12,9,"canard","cancane","       cancane"]
[null,"Nombre de questons :",{"$f":"IF(H14<56,H14,55)&\" / 55\"","v":"0 / 55"},null,null,null,null,0,null,13,46,"poule","caquette","       caquette"]
[null,"Nombre de réponses :",0,null,{"$f":"IF(H14>55,\"Bravo, vous avez répondu aux 55 questions\",\"\")","v":""},null,null,null,null,14,6,"baleine","chante","       chante"]
[null,"Solutions demandées :",0,null,null,null,null,null,null,15,14,"chèvre","chevrote","       chevrote"]
[null,"Indices demandés :",0,null,null,null,null,null,null,16,53,"souris","chicote","       chicote"]
[null,"Réponses justes :",0,null,null,null,null,null,null,17,35,"lapin","clapit","       clapit"]
[null,null,null,null,null,null,null,null,null,18,22,"crapaud","coasse","       coasse"]
[null,null,null,null,null,null,null,null,null,19,19,"coq","coquerique","       coquerique"]
[null,null,null,null,null,null,null,null,null,20,21,"coucou","coucoule","       coucoule"]
[null,null,null,null,null,null,null,null,null,21,29,"grillon","craquète","       craquète"]
[null,null,null,null,null,null,null,null,null,22,24,"cygne","drense","D -  drense"]
[null,null,null,null,null,null,null,null,null,23,42,"panthère","feule","F  -  feule"]
[null,null,null,null,null,null,null,null,null,24,3,"aigle","glatit","G -  glatit"]
[null,null,null,null,null,null,null,null,null,25,26,"dindon","glouglote","       glouglote"]
[null,null,null,null,null,null,null,null,null,26,47,"poule couvant","glousse","       glousse"]
[null,null,null,null,null,null,null,null,null,27,17,"cochon","grogne","       grogne"]
[null,null,null,null,null,null,null,null,null,28,51,"sanglier","grommelle","       grommelle"]
[null,null,null,null,null,null,null,null,null,29,41,"ours","gronde","       gronde"]
[null,null,null,null,null,null,null,null,null,30,13,"cheval","hennit","H -  hennit"]
[null,null,null,null,null,null,null,null,null,31,31,"hibou","hulule","       hulule"]
[null,null,null,null,null,null,null,null,null,32,34,"hyène","hurle","       hurle"]
[null,null,null,null,null,null,null,null,null,33,45,"pingouin","jabote","J  -  jabote"]
[null,null,null,null,null,null,null,null,null,34,43,"pie","jacasse","       jacasse"]
[null,null,null,null,null,null,null,null,null,35,49,"renard","jappe","       jappe"]
[null,null,null,null,null,null,null,null,null,36,28,"girafe","meugle ou beugle","M -  meugle ou beugle"]
[null,null,null,null,null,null,null,null,null,37,12,"chat","miaule","       miaule"]
[null,null,null,null,null,null,null,null,null,38,39,"moineau","pépie","P  -  pépie"]
[null,null,null,null,null,null,null,null,null,39,33,"huppe","pupule","       pupule"]
[null,null,null,null,null,null,null,null,null,40,18,"colombe","roucoule","R -  roucoule"]
[null,null,null,null,null,null,null,null,null,41,36,"lion","rugit","       rugit"]
[null,null,null,null,null,null,null,null,null,42,25,"dauphin","siffle","S  -  siffle"]
[null,null,null,null,null,null,null,null,null,43,16,"cigale","stridule","       stridule"]
[null,null,null,null,null,null,null,null,null,44,4,"alouette","tire-lire","T  -  tire-lire"]
[null,null,null,null,null,null,null,null,null,45,23,"crocodile","vagit","V -  vagit"]
[null,null,null,null,null,null,null,null,null,46,30,"guêpe","vrombit","      vrombit"]
[]
[]
[]
[]
[]
[]
[]
[]
[]
[]
[]
[null,"Liste de la série :"]
[null,1]
[null,2]
[null,3]
[null,4]
[null,5]
[null,6]
[null,7]
[null,8]
[null,9]
[null,10]
[null,11,null,null,null,null,null,"Quiz ABCD"]
[null,12,null,null,null,null,null,8,9,10,11,12,13,14,15]
[null,13,null,null,null,null,null,"H","I","J","K","l","M","N"]
[null,14,null,null,null,null,null,73,"Tirage abcd",1,46]
[null,15,null,null,null,null,null,74,null,2,7]
[null,16,null,null,null,null,null,75,null,3,40]
[null,17,null,null,null,null,null,76,null,4,8,null,"rep ABCD",{"$f":"H5","v":1}]
[null,18,null,null,null,null,null,77,null,5,{"$f":"VLOOKUP(K84,Animaux!A1:G56,7)","v":4},null,"v ABCD",{"$f":"MATCH(5,N79:N83,0)","v":5}]
[null,19,null,null,null,null,null,78,null,"rang cris",null,"Juste >>>",null,{"$f":"IF(N76=N77,1,0)","v":0}]
[null,20,null,null,null,null,null,79,"A",{"$f":"RANK(K73,$K$73:$K$77)","v":1},{"$f":"VLOOKUP(J79,$J$73:$K$77,2)","v":46},1,{"$f":"\"A - \"&VLOOKUP(K79,$J$2:$N$47,4)","v":"A - vrombit"},{"$f":"J79","v":1}]
[null,21,null,null,null,null,null,80,"B",{"$f":"RANK(K74,$K$73:$K$77)","v":4},{"$f":"VLOOKUP(J80,$J$73:$K$77,2)","v":8},2,{"$f":"\"B - \"&VLOOKUP(K80,$J$2:$N$47,4)","v":"B - bourdonne"},{"$f":"J80","v":4}]
[null,22,null,null,null,null,null,81,"C",2,7,3,{"$f":"\"C - \"&VLOOKUP(K81,$J$2:$N$47,4)","v":"C - blatère"},2]
[null,23,null,null,null,null,null,82,"D",3,40,4,{"$f":"\"D - \"&VLOOKUP(K82,$J$2:$N$47,4)","v":"D - roucoule"},3]
[null,24,null,null,null,null,null,83,"E",5,4,5,{"$f":"\"E - \"&VLOOKUP(K83,$J$2:$N$47,4)","v":"E - barrit"},5]
[null,25,null,null,null,null,null,null,"animal",5,27]
[null,26,null,null,null,null,null,null,null,null,null,"lettre juste",{"$f":"VLOOKUP(N77+78,H79:I83,2)","v":"E"}]
[null,27]
[null,28,null,null,null,null,null,null,null,null,null,null,null,35]
[null,29,null,null,null,null,null,null,null,null,"no du cri"]
[null,30,null,null,null,null,null,null,null,null,null,0," ?","   "]
[null,31,null,null,null,null,null,null,null,null,{"$f":"VLOOKUP(K79,Animaux!$A$1:$I$56,7)","v":13},1,{"$f":"VLOOKUP(K79,$J$2:$N$47,4)","v":"vrombit"},{"$f":"K79","v":46}," "]
[null,32,null,null,null,null,null,null,null,null,{"$f":"VLOOKUP(K80,Animaux!$A$1:$I$56,7)","v":5},2,{"$f":"VLOOKUP(K80,$J$2:$N$47,4)","v":"bourdonne"},{"$f":"K80","v":8}]
[null,33,null,null,null,null,null,null,null,null,{"$f":"VLOOKUP(K81,Animaux!$A$1:$I$56,7)","v":6},3,"blatère",7]
[null,34,null,null,null,null,null,null,null,null,{"$f":"VLOOKUP(K82,Animaux!$A$1:$I$56,7)","v":11},4,"roucoule",40]
[null,35,null,null,null,null,null,null,null,null,{"$f":"VLOOKUP(K83,Animaux!$A$1:$I$56,7)","v":44},5,"barrit",4]
[null,36]
[null,37]
[null,38]
[null,39]
[null,40]
[null,41]
[null,42]
[null,43]
[null,44]
[null,45]
[null,46]
[null,47]
[null,48]
[null,49]
[null,50]
[null,51]
[null,52]
[null,53]
[null,54]
[null,55]

{"sheet":"Animaux","index":2,"n_rows":251,"n_cols":7,"rows_kept":251,"cut":false,"hidden":false,"merged":[[75,1,75,2],[76,1,76,2],[77,1,77,2],[78,1,78,2],[71,1,71,2],[60,1,60,2],[61,1,61,2],[62,1,62,2],[63,1,63,2],[64,1,64,2],[70,1,70,2],[72,1,72,2],[73,1,73,2],[74,1,74,2],[65,1,65,2],[66,1,66,2],[67,1,67,2],[68,1,68,2],[69,1,69,2]]}
[0,null,"Animal",null,"    "]
[1,"L'","abeille","bourdonne",null,"bo",{"$f":"MATCH(D2,Questions!$M$2:$M$48)","v":8}]
[2,"L'","agneau","bêle",null,"bê",{"$f":"MATCH(D3,Questions!$M$2:$M$48)","v":5}]
[3,"L'","aigle","glatit",null,"gl",{"$f":"MATCH(D4,Questions!$M$2:$M$48)","v":24}]
[4,"L'","alouette","tire-lire",null,"ti",{"$f":"MATCH(D5,Questions!$M$2:$M$48)","v":44}]
[5,"L'","âne","brait",null,"br",{"$f":"MATCH(D6,Questions!$M$2:$M$48)","v":9}]
[6,"La","baleine","chante",null,"ch",{"$f":"MATCH(D7,Questions!$M$2:$M$48)","v":14}]
[7,"La","belette","belotte",null,"be",{"$f":"MATCH(D8,Questions!$M$2:$M$48)","v":6}]
[8,"La","brebis","bêle",null,"bê",{"$f":"MATCH(D9,Questions!$M$2:$M$48)","v":5}]
[9,"Le","canard","cancane",null,"ca",{"$f":"MATCH(D10,Questions!$M$2:$M$48)","v":12}]
[10,"Le","cerf","brame",null,"br",{"$f":"MATCH(D11,Questions!$M$2:$M$48)","v":10}]
[11,"Le","chameau","blatère",null,"bl",{"$f":"MATCH(D12,Questions!$M$2:$M$48)","v":7}]
[12,"Le","chat","miaule",null,"mi",{"$f":"MATCH(D13,Questions!$M$2:$M$48)","v":37}]
[13,"Le","cheval","hennit",null,"he",{"$f":"MATCH(D14,Questions!$M$2:$M$48)","v":30}]
[14,"La","chèvre","chevrote",null,"ch",{"$f":"MATCH(D15,Questions!$M$2:$M$48)","v":15}]
[15,"Le","chien","aboie",null,"ab",{"$f":"MATCH(D16,Questions!$M$2:$M$48)","v":2}]
[16,"La","cigale","stridule",null,"st",{"$f":"MATCH(D17,Questions!$M$2:$M$48)","v":43}]
[17,"Le","cochon","grogne",null,"gr",{"$f":"MATCH(D18,Questions!$M$2:$M$48)","v":27}]
[18,"La","colombe","roucoule",null,"ro",{"$f":"MATCH(D19,Questions!$M$2:$M$48)","v":40}]
[19,"Le","coq","coquerique",null,"co",{"$f":"MATCH(D20,Questions!$M$2:$M$48)","v":19}]
[20,"La","corneille","babille",null,"ba",{"$f":"MATCH(D21,Questions!$M$2:$M$48)","v":3}]
[21,"Le","coucou","coucoule",null,"co",{"$f":"MATCH(D22,Questions!$M$2:$M$48)","v":20}]
[22,"Le","crapaud","coasse",null,"co",{"$f":"MATCH(D23,Questions!$M$2:$M$48)","v":18}]
[23,"Le","crocodile","vagit",null,"va",{"$f":"MATCH(D24,Questions!$M$2:$M$48)","v":45}]
[24,"Le","cygne","drense",null,"dr",{"$f":"MATCH(D25,Questions!$M$2:$M$48)","v":22}]
[25,"Le","dauphin","siffle",null,"si",{"$f":"MATCH(D26,Questions!$M$2:$M$48)","v":42}]
[26,"Le","dindon","glouglote",null,"gl",{"$f":"MATCH(D27,Questions!$M$2:$M$48)","v":25}]
[27,"L'","éléphant","barrit",null,"ba",{"$f":"MATCH(D28,Questions!$M$2:$M$48)","v":4}]
[28,"La","girafe","meugle ou beugle",null,"me",{"$f":"MATCH(D29,Questions!$M$2:$M$48)","v":36}]
[29,"Le","grillon","craquète",null,"cr",{"$f":"MATCH(D30,Questions!$M$2:$M$48)","v":21}]
[30,"La","guêpe","vrombit",null,"vr",{"$f":"MATCH(D31,Questions!$M$2:$M$48)","v":46}]
[31,"Le","hibou","hulule",null,"hu",{"$f":"MATCH(D32,Questions!$M$2:$M$48)","v":31}]
[32,"L'","hippopotame","grogne",null,"gr",{"$f":"MATCH(D33,Questions!$M$2:$M$48)","v":27}]
[33,"La","huppe","pupule",null,"pu",{"$f":"MATCH(D34,Questions!$M$2:$M$48)","v":39}]
[34,"La","hyène","hurle",null,"hu",{"$f":"MATCH(D35,Questions!$M$2:$M$48)","v":32}]
[35,"Le","lapin","clapit",null,"cl",{"$f":"MATCH(D36,Questions!$M$2:$M$48)","v":17}]
[36,"Le","lion","rugit",null,"ru",{"$f":"MATCH(D37,Questions!$M$2:$M$48)","v":41}]
[37,"Le","loup","hurle",null,"hu",{"$f":"MATCH(D38,Questions!$M$2:$M$48)","v":32}]
[38,"La","marmotte","siffle",null,"si",{"$f":"MATCH(D39,Questions!$M$2:$M$48)","v":42}]
[39,"Le","moineau","pépie",null,"pé",{"$f":"MATCH(D40,Questions!$M$2:$M$48)","v":38}]
[40,"L'","oie","cacarde",null,"ca",{"$f":"MATCH(D41,Questions!$M$2:$M$48)","v":11}]
[41,"L'","ours","gronde",null,"gr",{"$f":"MATCH(D42,Questions!$M$2:$M$48)","v":29}]
[42,"La","panthère","feule",null,"fe",{"$f":"MATCH(D43,Questions!$M$2:$M$48)","v":23}]
[43,"La ","pie","jacasse",null,"ja",{"$f":"MATCH(D44,Questions!$M$2:$M$48)","v":34}]
[44,"Le","pigeon","roucoule",null,"ro",{"$f":"MATCH(D45,Questions!$M$2:$M$48)","v":40}]
[45,"Le","pingouin","jabote",null,"ja",{"$f":"MATCH(D46,Questions!$M$2:$M$48)","v":33}]
[46,"La","poule","caquette",null,"ca",{"$f":"MATCH(D47,Questions!$M$2:$M$48)","v":13}]
[47,"La","poule couvant","glousse",null,"gl",{"$f":"MATCH(D48,Questions!$M$2:$M$48)","v":26}]
[48,"Le","poussin","pépie",null,"pé",{"$f":"MATCH(D49,Questions!$M$2:$M$48)","v":38}]
[49,"Le","renard","jappe",null,"ja",{"$f":"MATCH(D50,Questions!$M$2:$M$48)","v":35}]
[50,"Le","rossignol","chante",null,"ch",{"$f":"MATCH(D51,Questions!$M$2:$M$48)","v":14}]
[51,"Le","sanglier","grommelle",null,"gr",{"$f":"MATCH(D52,Questions!$M$2:$M$48)","v":28}]
[52,"Le","serpent","siffle",null,"si",{"$f":"MATCH(D53,Questions!$M$2:$M$48)","v":42}]
[53,"La","souris","chicote",null,"ch",{"$f":"MATCH(D54,Questions!$M$2:$M$48)","v":16}]
[54,"Le","tigre","feule",null,"fe",{"$f":"MATCH(D55,Questions!$M$2:$M$48)","v":23}]
[55,"La","vache","meugle ou beugle",null,"me",{"$f":"MATCH(D56,Questions!$M$2:$M$48)","v":36}]
[56,null,null,null,"Partie terminée"]
[]
[]
["Liste :"]
[null,{"$f":"B2&\" \"&C2&\" \"&D2","v":"L' abeille bourdonne"},null,{"$f":"B21&\" \"&C21&\" \"&D21","v":"La corneille babille"},{"$f":"B40&\" \"&C40&\" \"&D40","v":"Le moineau pépie"}]
[null,{"$f":"B3&\" \"&C3&\" \"&D3","v":"L' agneau bêle"},null,"Le coucou coucoule","L' oie cacarde"]
[null,"L' aigle glatit",null,"Le crapaud coasse","L' ours gronde"]
[null,"L' alouette tire-lire",null,"Le crocodile vagit","La panthère feule"]
[null,"L' âne brait",null,"Le cygne drense","La  pie jacasse"]
[null,"La baleine chante",null,"Le dauphin siffle","Le pigeon roucoule"]
[null,"La belette belotte",null,"Le dindon glouglote","Le pingouin jabote"]
[null,"La brebis bêle",null,"L' éléphant barrit","La poule caquette"]
[null,"Le canard cancane",null,"La girafe meugle ou beugle","La poule couvant glousse"]
[null,"Le cerf brame",null,"Le grillon craquète","Le poussin pépie"]
[null,"Le chameau blatère",null,"La guêpe vrombit","Le renard jappe"]
[null,"Le chat miaule",null,"Le hibou hulule","Le rossignol chante"]
[null,"Le cheval hennit",null,"L' hippopotame grogne","Le sanglier grommelle"]
[null,"La chèvre chevrote",null,"La huppe pupule","Le serpent siffle"]
[null,"Le chien aboie",null,"La hyène hurle","La souris chicote"]
[null,"La cigale stridule",null,"Le lapin clapit","Le tigre feule"]
[null,"Le cochon grogne",null,"Le lion rugit","La vache meugle ou beugle"]
[null,"La colombe roucoule",null,"Le loup hurle"]
[null,{"$f":"B20&\" \"&C20&\" \"&D20","v":"Le coq coquerique"},null,"La marmotte siffle"]
[]
[]
[]
[]
[]
[]
["Liste Wikipedia par cris :"]
[null,"l'aboiement ou aboîment ou aboi : chacal, chien : n'existe pas chez les chiens sauvages (élan et antilope en termes de chasse)"]
[null,"l'agassement : pie3"]
[null,"l'appel : merle"]
[null,"la babillerie : corneille, fauvette, grive, merle, oiseau, (chien en vénerie)"]
[null,"le baret : éléphant, rhinocéros"]
[null,"le barrissement ou barrit : éléphant, rhinocéros"]
[null,"le bavardage : pie, merle"]
[null,"le béguètement : bouc, chèvre"]
[null,"le bêlement : brebis, bouc, chèvre, girafe, mouton, otarie, phoque"]
[null,"le belottement : belette"]
[null,"le beuglement : bœuf, buffle, courlis, taureau, vache"]
[null,"le blatèrement : bélier (lorsqu'il est en rut), chameau"]
[null,"le boubelement : hibou"]
[null,"le bourdonnement : abeille, guêpe, mouche"]
[null,"le braiement : âne, manchot, pingouin"]
[null,"le braillement ou le brailler : chien (vénerie), paon, porc (lorsqu'on le saigne)"]
[null,"le brame, la bramée, le brament : biche, cerf, chevreuil, daim"]
[null,"le brourissement : perdrix"]
[null,"le bubulement : hibou"]
[null,"le butissement : butor"]
[null,"le cacabement : caille, perdrix, pintade"]
[null,"le cacardement : geai, jars, oie"]
[null,"le cageolement ou cajolement : geai, pie"]
[null,"le cagnardement : jars, oie"]
[null,"le cagnetement : poule"]
[null,"le cancan : canard, perroquet"]
[null,"le caquètement : canard, poule"]
[null,"le caracoulement : palombe, pigeon, ramier, tourterelle"]
[null,"la causerie : perroquet, pie"]
[null,"le chant : alouette, baleine, cigale, coq, cygne, fauvette, grillon, lamantin, merle, oiseau, orque, poule (rarement), rossignol"]
[null,"le chevrotement : bouc, chèvre"]
[null,"le chicotement : rat, souris"]
[null,"le chuchètement : moineau, oiseau"]
[null,"le chuchotement : moineau, oiseau"]
[null,"le chuintement : chat-huant, chouette"]
[null,"la clabauderie : chien"]
[null,"le clapissement : lapin"]
[null,"le claquetement : cigogne, grue, poule"]
[null,"le clattissement : chien"]
[null,"le cloquement : poule"]
[null,"le cloussement : poule"]
[null,"le coassement : crapaud, grenouille"]
[null,"le cocaillement : poule"]
[null,"le cocardement : geai"]
[null,"le coclorement : poule"]
[null,"le codèquement : poule"]
[null,"le concourègement : palombe, pigeon, ramier"]
[null,"le conte : cigale"]
[null,"le coquelinement : coq : au point du jour"]
[null,"le coqueriquement : coq"]
[null,"le coraillement : corbeau"]
[null,"le corbinement : corneille"]
[null,"le coucassement : poule"]
[null,"le coucouannement : bécasse"]
[null,"le coucouement : coucou"]
[null,"le coucoulement : coucou"]
[null,"le couinement : cochon, lapin, lièvre : lorsqu'il succombe sous les crocs des chiens, porc, rat, souris"]
[null,"le courcaillet : caille"]
[null,"le craillement ou croaillement : corbeau, corneille, perroquet"]
[null,"le craquement : cigogne, grue, perroquet"]
[null,"le craquètement : cigale, cigogne, grillon, grue"]
[null,"le crétellement : poule"]
[null,"le cri : grillon, œdicnème, singe"]
[null,"la criaillerie : corneille, faisan, jars, oie, paon, pintade"]
[null,"le criquètement : cigale, criquet,"]
[null,"le crissement : grillon"]
[null,"le coaillement : corbeau, corneille, freux, perroquet"]
[null,"le croassement : corbeau, corneille, freux, perroquet"]
[null,"le croulement : bécasse, bécassine"]
[null,"le croutement : bécasse"]
[null,"le dodeldirement : coq de bruyère"]
[null,"le drensement ou drensitement : cygne"]
[null,"le feulement : chat, panthère, tigre"]
[null,"le flûtement : merle"]
[null,"le frigulotement : geai"]
[null,"le fringolement : geai"]
[null,"le frigotement : geai, pinson"]
[null,"le frouement : hibou"]
[null,"le gajolement : geai"]
[null,"le gazouillement : hirondelle, oiseau"]
[null,"le gémissement : colombe, tourterelle, ramier"]
[null,"le glapissement : chiot, épervier, faisan, grue, lapin, renard"]
[null,"le glatissement : aigle"]
[null,"le glottorement : cigogne."]
[null,"le glouglou : dindon"]
[null,"le gloussement (autrefois glossement) : dindon, gélinotte, oie, perdrix, poule : lorsqu'elle veut couver ou appelle ses poussins"]
[null,"le graillement : corbeau, freux, corneille, épervier"]
[null,"le grésillement : grillon"]
[null,"le grésillonnement : grillon"]
[null,"le grincement : chauve-souris"]
[null,"le gringottement : rossignol"]
[null,"le gringotement : serin"]
[null,"le grisollement : alouette"]
[null,"le grognement : chien, cochon, hippopotame, lion, loup, ours, otarie, phoque, porc, rhinocéros, sanglier"]
[null,"le grognonement : pourceau"]
[null,"le grommellement : ours, sanglier"]
[null,"le grondement : chien, ours"]
[null,"le grouinement : porc"]
[null,"le hennissement : cheval, lama, zèbre"]
[null,"le hioquement : chouette"]
[null,"le hôlement : chouette, hulotte"]
[null,"le huelement : chouette"]
[null,"le huement : chat-huant, chouette, héron, hibou, hulotte"]
[null,"le huissement : faon, faucon, milan"]
[null,"le hululement ou ululement : chat-huant, chouette, hibou, hulotte (oiseaux de nuit)"]
[null,"le hurlement ou hurlerie : chien, hyène, loup, ours, singe"]
[null,"le jabotage : manchot, oiseau, palombe, perruche, pigeon, pingouin"]
[null,"le jacassement : perruche, pie"]
[null,"le jappage ou jappement : chacal, chien, chiot, renard"]
[null,"le jargonnement : jars"]
[null,"le jasement ou jaserie : étourneau, geai, merle, perroquet, pie"]
[null,"le lamentement : chouette, crocodile, hulotte"]
[null,"le margaudement ou margotement ou margottement : caille"]
[null,"le meuglement : bœuf, buffle, girafe, taureau, vache (bovins en général)"]
[null,"le miaulement : buse, chat, hibou, panthère, tigre"]
[null,"le mugissement : bœuf, taureau, buffle, girafe, taureau, vache (bovins en général)"]
[null,"le nasillement ou nasillonnement : canard, chien, sanglier"]
[null,"le paonement : paon"]
[null,"le parlé : perroquet"]
[null,"le pépiement : moineau, oiseau, poussin"]
[null,"le peupleutement : pic vert"]
[null,"le pialement : épervier"]
[null,"le piaillement : faisan, moineau, oiseau, perroquet, poulet, poussin, singe"]
[null,"le piaulement : albatros, buse, chacal, oiseau, poulet, poussin, rat"]
[null,"le picassement : pic vert"]
[null,"le pirouittement : perdrix"]
[null,"le pisotement : étourneau"]
[null,"le pituitement : caille"]
[null,"le pleupeutement : pic vert"]
[null,"le pleur : crocodile, goéland"]
[null,"le pupulement : huppe"]
[null,"le puputement : huppe"]
[null,"le quiritement : rossignol"]
[null,"le raillement : goéland"]
[null,"le rairement : biche, cerf : en rut, chevreuil, daim"]
[null,"le raller : cerf, chevreuil, daim, faon, tigre"]
[null,"le ramage : corbeau, oiseau, pinson, serin"]
[null,"le rappel : perdrix"]
[null,"le rauque : tigre"]
[null,"le réclamement : faucon. Bruit que l'on fait pour le faire revenir au leurre ou sur le poing"]
[null,"le réement : biche, cerf, chevreuil, daim"]
[null,"le ricanement ou ricanerie : hyène"]
[null,"le ronron ou ronronnement : chat, tigre (grondement de satisfaction)"]
[null,"le rossignolement : rossignol"]
[null,"le rot : chevreuil"]
[null,"le roucoulement : colombe, palombe, pigeon, ramier, tourterelle"]
[null,"le rugissement : lion, otarie, panthère, phoque, tigre"]
[null,"le sifflement : courlis, crapaud, cygne, dauphin, loriot, marmotte, merle, oie, oiseau, perroquet, perruche, pinson, serpent"]
[null,"le soufflement : buffle"]
[null,"le stridulement : cigale, criquet, sauterelle"]
[null,"le tiraillement : épervier"]
[null,"le tireliement : alouette"]
[null,"le tire-lirement : alouette"]
[null,"le titinement : mésange"]
[null,"le tridulement : hirondelle"]
[null,"le trillement : rossignol, serin"]
[null,"le trissement : hirondelle"]
[null,"le trompetement : aigle, cygne, grue, renard"]
[null,"le trufflement : sarcelle"]
[null,"le truissotement : hirondelle"]
[null,"le turlutement : alouette, courlis, pipit farlouse"]
[null,"le tutubement : hibou"]
[null,"le vagissement : crocodile, lièvre"]
[null,"le vrombissement : abeille, guêpe, mouche"]
[null,"le zinzinulement : colibri, fauvette, mésange, roitelet"]